[Event "Titled Tuesday Blitz October 31 Late 2023"]
[White "JackRodgers"]
[Black "UK_23"]
[WhiteElo "2524"]
[BlackElo "2390"]
[Result "0-1"]
[Round "8"]
[TimeControl "180+1"]
[Date "2023.10.31"]
[WhiteClock "0:00:00"]
[BlackClock "0:00:59"]
[Board "69"]

1. d4 {[%clk 0:03:00]}  d5 {[%clk 0:02:48]} 2. Bg5 {[%clk 0:02:59]}  c5 {[%clk 0:02:47]} 3. dxc5 {[%clk 0:02:58]}  h6 {[%clk 0:02:47]} 4. Bh4 {[%clk 0:02:58]}  g5 {[%clk 0:02:48]} 5. Bg3 {[%clk 0:02:58]}  Bg7 {[%clk 0:02:49]} 6. c3 {[%clk 0:02:59]}  Na6 {[%clk 0:02:49]} 7. h4 {[%clk 0:02:58]}  Nxc5 {[%clk 0:02:46]} 8. hxg5 {[%clk 0:02:59]}  hxg5 {[%clk 0:02:47]} 9. Rxh8 {[%clk 0:02:59]}  Bxh8 {[%clk 0:02:48]} 10. e3 {[%clk 0:02:57]}  Ne4 {[%clk 0:02:47]} 11. Qh5 {[%clk 0:02:41]}  Bf6 {[%clk 0:02:44]} 12. Qh7 {[%clk 0:02:36]}  Kf8 {[%clk 0:02:43]} 13. Nd2 {[%clk 0:01:59]}  Nxg3 {[%clk 0:02:41]} 14. fxg3 {[%clk 0:02:00]}  Qd6 {[%clk 0:02:35]} 15. Kf2 {[%clk 0:01:55]}  Bg4 {[%clk 0:02:02]} 16. Be2 {[%clk 0:01:47]}  Be6 {[%clk 0:01:46]} 17. Ngf3 {[%clk 0:01:37]}  b5 {[%clk 0:01:41]} 18. Bxb5 {[%clk 0:01:04]}  Rb8 {[%clk 0:01:41]} 19. Qd3 {[%clk 0:01:05]}  a6 {[%clk 0:01:39]} 20. Bxa6 {[%clk 0:01:05]}  Rxb2 {[%clk 0:01:40]} 21. Rb1 {[%clk 0:00:57]}  Rxa2 {[%clk 0:01:36]} 22. Bb5 {[%clk 0:00:50]}  g4 {[%clk 0:01:36]} 23. Nd4 {[%clk 0:00:41]}  Be5 {[%clk 0:01:36]} 24. Ne2 {[%clk 0:00:36]}  Nf6 {[%clk 0:01:31]} 25. Rd1 {[%clk 0:00:22]}  Nh5 {[%clk 0:01:21]} 26. Qh7 {[%clk 0:00:16]}  Bxg3+ {[%clk 0:01:20]} 27. Kf1 {[%clk 0:00:12]}  Nf6 {[%clk 0:01:17]} 28. Qh8+ {[%clk 0:00:10]}  Ng8 {[%clk 0:01:17]} 29. Bd3 {[%clk 0:00:06]}  Qe5 {[%clk 0:01:12]} 30. Qh7 {[%clk 0:00:00]}  Qxe3 {[%clk 0:00:59]} 0-1


[Site "https://www.chess.com"]

[Event "Titled Tuesday Blitz October 31 Late 2023"]
[White "Osmak, Yuliia"]
[Black "Colivet Gamboa, Julio Cesar"]
[WhiteFideId "14101602"]
[BlackFideId "3949583"]
[WhiteElo "2521"]
[BlackElo "2386"]
[Result "1-0"]
[Round "8"]
[TimeControl "180+1"]
[Date "2023.10.31"]
[WhiteClock "0:01:29"]
[BlackClock "0:01:44"]
[Board "70"]

1. e4 {[%clk 0:03:00]}  c5 {[%clk 0:02:59]} 2. Nf3 {[%clk 0:03:00]}  Nc6 {[%clk 0:03:00]} 3. Bb5 {[%clk 0:02:59]}  g6 {[%clk 0:03:00]} 4. O-O {[%clk 0:02:59]}  Bg7 {[%clk 0:02:57]} 5. Re1 {[%clk 0:02:58]}  Nf6 {[%clk 0:02:57]} 6. c3 {[%clk 0:02:50]}  O-O {[%clk 0:02:55]} 7. d4 {[%clk 0:02:49]}  cxd4 {[%clk 0:02:55]} 8. cxd4 {[%clk 0:02:50]}  d5 {[%clk 0:02:55]} 9. e5 {[%clk 0:02:49]}  Ne4 {[%clk 0:02:55]} 10. Nbd2 {[%clk 0:02:39]}  Nxd2 {[%clk 0:02:53]} 11. Bxd2 {[%clk 0:02:37]}  Bg4 {[%clk 0:02:52]} 12. Bxc6 {[%clk 0:02:35]}  bxc6 {[%clk 0:02:52]} 13. h3 {[%clk 0:02:31]}  Bxf3 {[%clk 0:02:52]} 14. Qxf3 {[%clk 0:02:32]}  Qb6 {[%clk 0:02:51]} 15. b4 {[%clk 0:02:21]}  Qxd4 {[%clk 0:02:48]} 16. Bc3 {[%clk 0:02:21]}  Qc4 {[%clk 0:02:41]} 17. Rec1 {[%clk 0:02:16]}  e6 {[%clk 0:02:40]} 18. a4 {[%clk 0:02:09]}  Rab8 {[%clk 0:02:36]} 19. Qe3 {[%clk 0:02:03]}  Rb7 {[%clk 0:02:27]} 20. Bd4 {[%clk 0:01:57]}  Qxb4 {[%clk 0:02:11]} 21. Bc5 {[%clk 0:01:56]}  Qh4 {[%clk 0:02:00]} 22. Bxf8 {[%clk 0:01:54]}  Bxf8 {[%clk 0:02:00]} 23. Rxc6 {[%clk 0:01:47]}  d4 {[%clk 0:01:58]} 24. Qf3 {[%clk 0:01:37]}  a5 {[%clk 0:01:51]} 25. Rc8 {[%clk 0:01:31]}  Kg7 {[%clk 0:01:44]} 26. Qxb7 {[%clk 0:01:29]} 1-0


[Site "https://www.chess.com"]

[Event "Titled Tuesday Blitz October 31 Late 2023"]
[White "Buscar, Michael"]
[Black "Seletsky, Grigory"]
[WhiteFideId "2603616"]
[BlackFideId "14112191"]
[WhiteElo "2347"]
[BlackElo "2481"]
[Result "0-1"]
[Round "8"]
[TimeControl "180+1"]
[Date "2023.10.31"]
[WhiteClock "0:00:01"]
[BlackClock "0:00:40"]
[Board "72"]

1. d4 {[%clk 0:01:13]}  Nf6 {[%clk 0:02:58]} 2. c4 {[%clk 0:01:13]}  c5 {[%clk 0:02:58]} 3. d5 {[%clk 0:01:12]}  b5 {[%clk 0:02:58]} 4. cxb5 {[%clk 0:01:13]}  a6 {[%clk 0:02:59]} 5. bxa6 {[%clk 0:01:14]}  Bxa6 {[%clk 0:02:58]} 6. g3 {[%clk 0:01:14]}  d6 {[%clk 0:02:58]} 7. Bg2 {[%clk 0:01:15]}  g6 {[%clk 0:02:56]} 8. Nf3 {[%clk 0:01:15]}  Bg7 {[%clk 0:02:57]} 9. O-O {[%clk 0:01:15]}  O-O {[%clk 0:02:54]} 10. Ne1 {[%clk 0:01:15]}  Nbd7 {[%clk 0:02:54]} 11. Bd2 {[%clk 0:01:11]}  Nb6 {[%clk 0:02:50]} 12. Bc3 {[%clk 0:01:10]}  Bb7 {[%clk 0:02:41]} 13. a4 {[%clk 0:01:05]}  Qd7 {[%clk 0:02:24]} 14. a5 {[%clk 0:01:05]}  Nbxd5 {[%clk 0:02:25]} 15. Bxd5 {[%clk 0:00:41]}  Nxd5 {[%clk 0:02:21]} 16. Bxg7 {[%clk 0:00:41]}  Kxg7 {[%clk 0:02:21]} 17. Nc2 {[%clk 0:00:36]}  Qc6 {[%clk 0:02:16]} 18. f3 {[%clk 0:00:35]}  Ba6 {[%clk 0:02:14]} 19. Qd2 {[%clk 0:00:26]}  Rfb8 {[%clk 0:02:13]} 20. Nc3 {[%clk 0:00:22]}  Nb4 {[%clk 0:02:04]} 21. Nxb4 {[%clk 0:00:20]}  Rxb4 {[%clk 0:02:01]} 22. Rfc1 {[%clk 0:00:17]}  Rab8 {[%clk 0:01:59]} 23. Rc2 {[%clk 0:00:18]}  Qb7 {[%clk 0:01:57]} 24. Ra2 {[%clk 0:00:17]}  Bc4 {[%clk 0:01:55]} 25. Ra4 {[%clk 0:00:12]}  Bb3 {[%clk 0:01:51]} 26. Rxb4 {[%clk 0:00:12]}  cxb4 {[%clk 0:01:40]} 27. Ne4 {[%clk 0:00:09]}  Bxc2 {[%clk 0:01:38]} 28. Qxc2 {[%clk 0:00:10]}  Rc8 {[%clk 0:01:29]} 29. Qa4 {[%clk 0:00:09]}  d5 {[%clk 0:01:22]} 30. Nf2 {[%clk 0:00:09]}  Qa6 {[%clk 0:01:00]} 31. Nd3 {[%clk 0:00:09]}  b3 {[%clk 0:00:57]} 32. Qd4+ {[%clk 0:00:07]}  Kg8 {[%clk 0:00:53]} 33. Qxd5 {[%clk 0:00:08]}  Rc2 {[%clk 0:00:46]} 34. Kf2 {[%clk 0:00:06]}  Qa7+ {[%clk 0:00:43]} 35. Ke1 {[%clk 0:00:06]}  Qe3 {[%clk 0:00:43]} 36. Nf2 {[%clk 0:00:01]}  Qxe2# {[%clk 0:00:40]} 0-1


[Site "https://www.chess.com"]

[Event "Titled Tuesday Blitz October 31 Late 2023"]
[White "Zakarian, David"]
[Black "Ardelean, George-Catalin"]
[WhiteFideId "13301276"]
[BlackFideId "1207091"]
[WhiteElo "2432"]
[BlackElo "2725"]
[Result "1/2-1/2"]
[Round "8"]
[TimeControl "180+1"]
[Date "2023.10.31"]
[WhiteClock "0:00:02"]
[BlackClock "0:00:13"]
[Board "76"]

1. f4 {[%clk 0:02:58]}  d5 {[%clk 0:02:57]} 2. Nf3 {[%clk 0:02:58]}  Nf6 {[%clk 0:02:53]} 3. e3 {[%clk 0:02:58]}  g6 {[%clk 0:02:41]} 4. b3 {[%clk 0:02:58]}  Bg7 {[%clk 0:02:40]} 5. Bb2 {[%clk 0:02:59]}  O-O {[%clk 0:02:40]} 6. Be2 {[%clk 0:02:59]}  c5 {[%clk 0:02:41]} 7. O-O {[%clk 0:02:58]}  Nc6 {[%clk 0:02:41]} 8. Bb5 {[%clk 0:02:58]}  Qc7 {[%clk 0:02:37]} 9. Bxc6 {[%clk 0:02:56]}  Qxc6 {[%clk 0:02:38]} 10. d3 {[%clk 0:02:55]}  Ne8 {[%clk 0:02:33]} 11. Bxg7 {[%clk 0:02:52]}  Nxg7 {[%clk 0:02:33]} 12. Ne5 {[%clk 0:02:52]}  Qd6 {[%clk 0:02:32]} 13. Nd2 {[%clk 0:02:52]}  f6 {[%clk 0:02:32]} 14. Nef3 {[%clk 0:02:51]}  e5 {[%clk 0:02:16]} 15. fxe5 {[%clk 0:02:52]}  fxe5 {[%clk 0:02:16]} 16. e4 {[%clk 0:02:52]}  Be6 {[%clk 0:02:06]} 17. Qe1 {[%clk 0:02:46]}  d4 {[%clk 0:01:39]} 18. Qg3 {[%clk 0:02:35]}  Rf4 {[%clk 0:01:39]} 19. Nxe5 {[%clk 0:02:32]}  Nh5 {[%clk 0:01:39]} 20. Nec4 {[%clk 0:02:19]}  Rxf1+ {[%clk 0:01:33]} 21. Nxf1 {[%clk 0:02:15]}  Nxg3 {[%clk 0:01:27]} 22. Nxd6 {[%clk 0:02:13]}  Ne2+ {[%clk 0:01:27]} 23. Kf2 {[%clk 0:02:08]}  Bg4 {[%clk 0:01:24]} 24. Nd2 {[%clk 0:01:54]}  Rf8+ {[%clk 0:01:21]} 25. Nf3 {[%clk 0:01:54]}  Nf4 {[%clk 0:01:22]} 26. Kg3 {[%clk 0:01:45]}  Bxf3 {[%clk 0:01:17]} 27. gxf3 {[%clk 0:01:46]}  b6 {[%clk 0:01:14]} 28. a4 {[%clk 0:01:42]}  Ne2+ {[%clk 0:01:02]} 29. Kf2 {[%clk 0:01:40]}  Nc3 {[%clk 0:01:02]} 30. Re1 {[%clk 0:01:37]}  Rd8 {[%clk 0:00:55]} 31. Nb5 {[%clk 0:01:30]}  a6 {[%clk 0:00:46]} 32. Nxc3 {[%clk 0:01:29]}  dxc3 {[%clk 0:00:47]} 33. f4 {[%clk 0:01:29]}  Kf7 {[%clk 0:00:47]} 34. Kf3 {[%clk 0:01:29]}  Ke6 {[%clk 0:00:45]} 35. Rg1 {[%clk 0:01:29]}  Rd4 {[%clk 0:00:44]} 36. Rg5 {[%clk 0:01:27]}  Kd6 {[%clk 0:00:42]} 37. h4 {[%clk 0:01:24]}  b5 {[%clk 0:00:40]} 38. axb5 {[%clk 0:01:23]}  axb5 {[%clk 0:00:41]} 39. Ke3 {[%clk 0:01:20]}  Kc6 {[%clk 0:00:36]} 40. h5 {[%clk 0:01:19]}  Rd6 {[%clk 0:00:36]} 41. hxg6 {[%clk 0:01:17]}  hxg6 {[%clk 0:00:37]} 42. e5 {[%clk 0:01:16]}  Re6 {[%clk 0:00:37]} 43. Ke4 {[%clk 0:01:15]}  b4 {[%clk 0:00:36]} 44. f5 {[%clk 0:01:14]}  gxf5+ {[%clk 0:00:36]} 45. Kxf5 {[%clk 0:01:15]}  Kd5 {[%clk 0:00:36]} 46. Kf4 {[%clk 0:01:09]}  Kd4 {[%clk 0:00:37]} 47. Rf5 {[%clk 0:01:05]}  Kd5 {[%clk 0:00:36]} 48. Rf8 {[%clk 0:00:52]}  Re7 {[%clk 0:00:33]} 49. Rd8+ {[%clk 0:00:48]}  Ke6 {[%clk 0:00:30]} 50. Ke4 {[%clk 0:00:45]}  Rh7 {[%clk 0:00:29]} 51. Rd6+ {[%clk 0:00:46]}  Ke7 {[%clk 0:00:29]} 52. Rc6 {[%clk 0:00:45]}  Rh2 {[%clk 0:00:30]} 53. Rxc5 {[%clk 0:00:43]}  Rxc2 {[%clk 0:00:30]} 54. Rc4 {[%clk 0:00:38]}  Re2+ {[%clk 0:00:29]} 55. Kd5 {[%clk 0:00:37]}  c2 {[%clk 0:00:29]} 56. d4 {[%clk 0:00:36]}  Kd7 {[%clk 0:00:28]} 57. Rc5 {[%clk 0:00:35]}  Ke7 {[%clk 0:00:23]} 58. Rc7+ {[%clk 0:00:34]}  Kd8 {[%clk 0:00:22]} 59. Rc4 {[%clk 0:00:29]}  Kd7 {[%clk 0:00:21]} 60. Kc5 {[%clk 0:00:28]}  Ke6 {[%clk 0:00:15]} 61. Kxb4 {[%clk 0:00:25]}  Kd5 {[%clk 0:00:16]} 62. Kb5 {[%clk 0:00:22]}  Rd2 {[%clk 0:00:15]} 63. b4 {[%clk 0:00:20]}  Rxd4 {[%clk 0:00:15]} 64. Rc5+ {[%clk 0:00:18]}  Ke6 {[%clk 0:00:14]} 65. Rxc2 {[%clk 0:00:19]}  Kxe5 {[%clk 0:00:14]} 66. Rc4 {[%clk 0:00:16]}  Rxc4 {[%clk 0:00:11]} 67. Kxc4 {[%clk 0:00:16]}  Kd6 {[%clk 0:00:11]} 68. Kb5 {[%clk 0:00:16]}  Kc7 {[%clk 0:00:12]} 69. Ka6 {[%clk 0:00:16]}  Kb8 {[%clk 0:00:12]} 70. Kb6 {[%clk 0:00:16]}  Ka8 {[%clk 0:00:12]} 71. b5 {[%clk 0:00:14]}  Kb8 {[%clk 0:00:13]} 72. Kc6 {[%clk 0:00:13]}  Ka7 {[%clk 0:00:12]} 73. b6+ {[%clk 0:00:11]}  Ka8 {[%clk 0:00:13]} 74. b7+ {[%clk 0:00:01]}  Kb8 {[%clk 0:00:13]} 75. Kb6 {[%clk 0:00:02]} 1/2-1/2


[Site "https://www.chess.com"]

[Event "Titled Tuesday Blitz October 31 Late 2023"]
[White "Ankerst, Mihael"]
[Black "Souleidis, Georgios"]
[WhiteFideId "14602369"]
[BlackFideId "4206827"]
[WhiteElo "2424"]
[BlackElo "2586"]
[Result "1-0"]
[Round "8"]
[TimeControl "180+1"]
[Date "2023.10.31"]
[WhiteClock "0:00:17"]
[BlackClock "0:00:00"]
[Board "77"]

1. d4 {[%clk 0:02:54]}  Nf6 {[%clk 0:02:59]} 2. c4 {[%clk 0:02:52]}  g6 {[%clk 0:02:59]} 3. Nc3 {[%clk 0:02:51]}  Bg7 {[%clk 0:03:00]} 4. e4 {[%clk 0:02:51]}  d6 {[%clk 0:03:00]} 5. f3 {[%clk 0:02:49]}  O-O {[%clk 0:03:00]} 6. Bg5 {[%clk 0:02:49]}  c5 {[%clk 0:03:00]} 7. d5 {[%clk 0:02:48]}  e6 {[%clk 0:03:00]} 8. Qd2 {[%clk 0:02:48]}  a6 {[%clk 0:03:01]} 9. a4 {[%clk 0:02:47]}  exd5 {[%clk 0:03:01]} 10. cxd5 {[%clk 0:02:46]}  h6 {[%clk 0:02:59]} 11. Be3 {[%clk 0:02:45]}  h5 {[%clk 0:02:57]} 12. Bd3 {[%clk 0:02:35]}  Qc7 {[%clk 0:02:54]} 13. Nge2 {[%clk 0:02:34]}  Nbd7 {[%clk 0:02:49]} 14. b3 {[%clk 0:02:29]}  Ne5 {[%clk 0:02:38]} 15. Bc2 {[%clk 0:02:28]}  h4 {[%clk 0:02:32]} 16. O-O {[%clk 0:02:27]}  h3 {[%clk 0:02:30]} 17. g4 {[%clk 0:02:25]}  Re8 {[%clk 0:01:57]} 18. Ng3 {[%clk 0:02:19]}  Bxg4 {[%clk 0:01:37]} 19. fxg4 {[%clk 0:02:19]}  Nfxg4 {[%clk 0:01:38]} 20. Bf4 {[%clk 0:02:15]}  c4 {[%clk 0:01:37]} 21. b4 {[%clk 0:02:12]}  Nd3 {[%clk 0:00:49]} 22. Bxd3 {[%clk 0:01:13]}  cxd3 {[%clk 0:00:50]} 23. Rac1 {[%clk 0:01:13]}  Rac8 {[%clk 0:00:46]} 24. Na2 {[%clk 0:01:06]}  Qb6+ {[%clk 0:00:46]} 25. Kh1 {[%clk 0:01:06]}  Rxc1 {[%clk 0:00:29]} 26. Nxc1 {[%clk 0:01:06]}  f5 {[%clk 0:00:15]} 27. exf5 {[%clk 0:00:40]}  Bd4 {[%clk 0:00:03]} 28. Nxd3 {[%clk 0:00:38]}  g5 {[%clk 0:00:03]} 29. Bxg5 {[%clk 0:00:30]}  Nf2+ {[%clk 0:00:03]} 30. Nxf2 {[%clk 0:00:27]}  Bxf2 {[%clk 0:00:04]} 31. Qxf2 {[%clk 0:00:26]}  Qxb4 {[%clk 0:00:02]} 32. f6 {[%clk 0:00:20]}  Kf7 {[%clk 0:00:00]} 33. Qf5 {[%clk 0:00:17]} 1-0


[Site "https://www.chess.com"]

[Event "Titled Tuesday Blitz October 31 Late 2023"]
[White "Shapiro, Viktor"]
[Black "Gabdushev, Ruslan"]
[WhiteFideId "4175700"]
[BlackFideId "4137833"]
[WhiteElo "2558"]
[BlackElo "2420"]
[Result "1-0"]
[Round "8"]
[TimeControl "180+1"]
[Date "2023.10.31"]
[WhiteClock "0:00:20"]
[BlackClock "0:00:00"]
[Board "79"]

1. c4 {[%clk 0:03:00]}  c6 {[%clk 0:02:56]} 2. Nc3 {[%clk 0:03:00]}  d6 {[%clk 0:02:54]} 3. d4 {[%clk 0:03:00]}  g6 {[%clk 0:02:53]} 4. Nf3 {[%clk 0:03:00]}  Bg7 {[%clk 0:02:53]} 5. Bg5 {[%clk 0:03:00]}  Bg4 {[%clk 0:02:50]} 6. e3 {[%clk 0:02:59]}  h6 {[%clk 0:02:41]} 7. Bh4 {[%clk 0:02:58]}  g5 {[%clk 0:02:40]} 8. Bg3 {[%clk 0:02:58]}  Nd7 {[%clk 0:02:39]} 9. h4 {[%clk 0:02:56]}  gxh4 {[%clk 0:02:36]} 10. Bxh4 {[%clk 0:02:54]}  Qb6 {[%clk 0:02:31]} 11. Qb3 {[%clk 0:02:52]}  Nf8 {[%clk 0:02:24]} 12. Be2 {[%clk 0:02:40]}  Ng6 {[%clk 0:02:22]} 13. Bg3 {[%clk 0:02:41]}  h5 {[%clk 0:02:22]} 14. Nd2 {[%clk 0:02:16]}  Nf6 {[%clk 0:02:18]} 15. Bxg4 {[%clk 0:02:12]}  hxg4 {[%clk 0:02:15]} 16. Rxh8+ {[%clk 0:02:12]}  Bxh8 {[%clk 0:02:16]} 17. Qc2 {[%clk 0:02:04]}  Nh5 {[%clk 0:02:12]} 18. Bh2 {[%clk 0:01:59]}  Qa5 {[%clk 0:02:09]} 19. O-O-O {[%clk 0:01:52]}  O-O-O {[%clk 0:02:01]} 20. Nde4 {[%clk 0:01:38]}  Nf6 {[%clk 0:01:41]} 21. Kb1 {[%clk 0:01:25]}  Bg7 {[%clk 0:01:38]} 22. c5 {[%clk 0:01:21]}  d5 {[%clk 0:01:35]} 23. Nxf6 {[%clk 0:01:21]}  Bxf6 {[%clk 0:01:34]} 24. Qf5+ {[%clk 0:01:21]}  Rd7 {[%clk 0:01:33]} 25. Qxg4 {[%clk 0:01:21]}  e6 {[%clk 0:01:28]} 26. Bd6 {[%clk 0:01:13]}  Qd8 {[%clk 0:01:21]} 27. Rh1 {[%clk 0:01:12]}  b6 {[%clk 0:01:19]} 28. Rh7 {[%clk 0:01:06]}  Qg8 {[%clk 0:01:17]} 29. Qh5 {[%clk 0:01:04]}  Kb7 {[%clk 0:00:53]} 30. g3 {[%clk 0:01:01]}  bxc5 {[%clk 0:00:46]} 31. Bxc5 {[%clk 0:01:00]}  e5 {[%clk 0:00:43]} 32. Qh3 {[%clk 0:00:51]}  Rd8 {[%clk 0:00:36]} 33. Na4 {[%clk 0:00:36]}  exd4 {[%clk 0:00:28]} 34. Bxd4 {[%clk 0:00:36]}  Bxd4 {[%clk 0:00:28]} 35. exd4 {[%clk 0:00:36]}  Qe8 {[%clk 0:00:27]} 36. Nc5+ {[%clk 0:00:35]}  Kb6 {[%clk 0:00:24]} 37. Qf1 {[%clk 0:00:34]}  Kc7 {[%clk 0:00:12]} 38. Qd1 {[%clk 0:00:25]}  Kd6 {[%clk 0:00:00]} 39. Qd2 {[%clk 0:00:20]} 1-0


[Site "https://www.chess.com"]

[Event "Titled Tuesday Blitz October 31 Late 2023"]
[White "Aldokhin, Ivan"]
[Black "Friedland, Moshe"]
[WhiteFideId "24115720"]
[BlackFideId "2812843"]
[WhiteElo "2542"]
[BlackElo "2415"]
[Result "1-0"]
[Round "8"]
[TimeControl "180+1"]
[Date "2023.10.31"]
[WhiteClock "0:01:13"]
[BlackClock "0:00:02"]
[Board "80"]

1. e4 {[%clk 0:03:00]}  c5 {[%clk 0:02:52]} 2. Nf3 {[%clk 0:03:01]}  d6 {[%clk 0:02:52]} 3. d4 {[%clk 0:03:01]}  cxd4 {[%clk 0:02:53]} 4. Nxd4 {[%clk 0:03:01]}  Nf6 {[%clk 0:02:54]} 5. Nc3 {[%clk 0:03:01]}  a6 {[%clk 0:02:54]} 6. Bc4 {[%clk 0:03:02]}  e6 {[%clk 0:02:54]} 7. Bb3 {[%clk 0:03:01]}  Nbd7 {[%clk 0:02:53]} 8. O-O {[%clk 0:03:01]}  Nc5 {[%clk 0:02:54]} 9. Qf3 {[%clk 0:03:00]}  Bd7 {[%clk 0:02:49]} 10. Bg5 {[%clk 0:03:00]}  b5 {[%clk 0:02:47]} 11. Rad1 {[%clk 0:03:00]}  b4 {[%clk 0:02:42]} 12. e5 {[%clk 0:02:36]}  dxe5 {[%clk 0:02:22]} 13. Nc6 {[%clk 0:02:36]}  Qc8 {[%clk 0:02:14]} 14. Nxe5 {[%clk 0:02:36]}  Be7 {[%clk 0:01:38]} 15. Nxd7 {[%clk 0:02:35]}  Ncxd7 {[%clk 0:01:32]} 16. Ne4 {[%clk 0:02:35]}  Nxe4 {[%clk 0:01:27]} 17. Bxe7 {[%clk 0:02:34]}  Kxe7 {[%clk 0:01:27]} 18. Qxe4 {[%clk 0:02:34]}  Rb8 {[%clk 0:01:17]} 19. Rfe1 {[%clk 0:02:23]}  Nc5 {[%clk 0:01:15]} 20. Qh4+ {[%clk 0:02:22]}  f6 {[%clk 0:01:09]} 21. Qg4 {[%clk 0:02:14]}  g6 {[%clk 0:00:41]} 22. Bc4 {[%clk 0:02:12]}  e5 {[%clk 0:00:37]} 23. Qh4 {[%clk 0:02:08]}  Ne6 {[%clk 0:00:32]} 24. Bxe6 {[%clk 0:01:51]}  Qxe6 {[%clk 0:00:33]} 25. f4 {[%clk 0:01:51]}  e4 {[%clk 0:00:17]} 26. Rd4 {[%clk 0:01:50]}  Qb6 {[%clk 0:00:17]} 27. Rxe4+ {[%clk 0:01:49]}  Kf7 {[%clk 0:00:17]} 28. Qf2 {[%clk 0:01:33]}  Qc6 {[%clk 0:00:14]} 29. Rc4 {[%clk 0:01:30]}  Qd5 {[%clk 0:00:14]} 30. Rc7+ {[%clk 0:01:29]}  Kg8 {[%clk 0:00:13]} 31. Ree7 {[%clk 0:01:27]}  h5 {[%clk 0:00:06]} 32. h3 {[%clk 0:01:18]}  Kf8 {[%clk 0:00:02]} 33. Qa7 {[%clk 0:01:13]} 1-0


[Site "https://www.chess.com"]

[Event "Titled Tuesday Blitz October 31 Late 2023"]
[White "Golubev, Mikhail"]
[Black "Hoffmann, Asa"]
[WhiteFideId "14100983"]
[BlackFideId "2001470"]
[WhiteElo "2532"]
[BlackElo "2409"]
[Result "0-1"]
[Round "8"]
[TimeControl "180+1"]
[Date "2023.10.31"]
[WhiteClock "0:00:00"]
[BlackClock "0:00:15"]
[Board "81"]

1. e4 {[%clk 0:03:00]}  d6 {[%clk 0:02:59]} 2. f4 {[%clk 0:02:58]}  c6 {[%clk 0:02:59]} 3. Nf3 {[%clk 0:02:57]}  g6 {[%clk 0:02:58]} 4. d4 {[%clk 0:02:56]}  d5 {[%clk 0:02:58]} 5. e5 {[%clk 0:02:52]}  Bg4 {[%clk 0:02:57]} 6. h3 {[%clk 0:02:46]}  Bxf3 {[%clk 0:02:56]} 7. Qxf3 {[%clk 0:02:46]}  e6 {[%clk 0:02:56]} 8. Bd3 {[%clk 0:02:32]}  c5 {[%clk 0:02:55]} 9. dxc5 {[%clk 0:02:26]}  Bxc5 {[%clk 0:02:54]} 10. Nc3 {[%clk 0:02:25]}  Nc6 {[%clk 0:02:54]} 11. Bd2 {[%clk 0:02:19]}  a6 {[%clk 0:02:30]} 12. O-O-O {[%clk 0:02:17]}  Nge7 {[%clk 0:02:28]} 13. g4 {[%clk 0:02:16]}  Qc7 {[%clk 0:02:24]} 14. Rhe1 {[%clk 0:02:04]}  O-O-O {[%clk 0:02:23]} 15. Kb1 {[%clk 0:01:55]}  Kb8 {[%clk 0:02:22]} 16. f5 {[%clk 0:01:46]}  gxf5 {[%clk 0:02:16]} 17. Bg5 {[%clk 0:01:41]}  Nd4 {[%clk 0:02:02]} 18. Qf1 {[%clk 0:01:32]}  fxg4 {[%clk 0:01:59]} 19. hxg4 {[%clk 0:01:25]}  Rhg8 {[%clk 0:01:53]} 20. Be3 {[%clk 0:00:49]}  Nec6 {[%clk 0:01:41]} 21. Qg1 {[%clk 0:00:32]}  h5 {[%clk 0:01:39]} 22. Rf1 {[%clk 0:00:20]}  Rxg4 {[%clk 0:01:37]} 23. Qh1 {[%clk 0:00:21]}  h4 {[%clk 0:01:25]} 24. Rf2 {[%clk 0:00:17]}  Rdg8 {[%clk 0:01:24]} 25. Rdf1 {[%clk 0:00:17]}  Nxe5 {[%clk 0:01:17]} 26. Bf4 {[%clk 0:00:13]}  Ndc6 {[%clk 0:01:12]} 27. Bh2 {[%clk 0:00:13]}  Bxf2 {[%clk 0:01:10]} 28. Rxf2 {[%clk 0:00:12]}  f5 {[%clk 0:01:06]} 29. a3 {[%clk 0:00:12]}  Qb6 {[%clk 0:01:01]} 30. Ka2 {[%clk 0:00:11]}  Ka8 {[%clk 0:00:59]} 31. Qe1 {[%clk 0:00:11]}  Nxd3 {[%clk 0:00:58]} 32. cxd3 {[%clk 0:00:12]}  Rg2 {[%clk 0:00:55]} 33. Qxe6 {[%clk 0:00:11]}  Rxf2 {[%clk 0:00:49]} 34. Qxg8+ {[%clk 0:00:08]}  Ka7 {[%clk 0:00:49]} 35. Na4 {[%clk 0:00:08]}  Qd4 {[%clk 0:00:31]} 36. Bg1 {[%clk 0:00:08]}  h3 {[%clk 0:00:23]} 37. Qg3 {[%clk 0:00:06]}  Qxa4 {[%clk 0:00:18]} 38. Qxf2+ {[%clk 0:00:05]}  d4 {[%clk 0:00:17]} 39. Qxf5 {[%clk 0:00:00]}  Nb4+ {[%clk 0:00:15]} 0-1


[Site "https://www.chess.com"]

[Event "Titled Tuesday Blitz October 31 Late 2023"]
[White "Lopez Idarraga, Daniel Eduardo"]
[Black "Nilsen, Tobias Lang"]
[WhiteFideId "4405501"]
[BlackFideId "1521624"]
[WhiteElo "2404"]
[BlackElo "2506"]
[Result "1-0"]
[Round "8"]
[TimeControl "180+1"]
[Date "2023.10.31"]
[WhiteClock "0:00:56"]
[BlackClock "0:01:10"]
[Board "83"]

1. d4 {[%clk 0:02:59]}  d5 {[%clk 0:02:57]} 2. c4 {[%clk 0:02:58]}  c6 {[%clk 0:02:57]} 3. cxd5 {[%clk 0:02:55]}  cxd5 {[%clk 0:02:57]} 4. Bf4 {[%clk 0:02:56]}  Nc6 {[%clk 0:02:57]} 5. Nc3 {[%clk 0:02:56]}  a6 {[%clk 0:02:55]} 6. e3 {[%clk 0:02:55]}  Nf6 {[%clk 0:02:55]} 7. Bd3 {[%clk 0:02:53]}  e6 {[%clk 0:02:51]} 8. Nf3 {[%clk 0:02:52]}  Bd6 {[%clk 0:02:51]} 9. Ne5 {[%clk 0:02:52]}  O-O {[%clk 0:02:49]} 10. Qf3 {[%clk 0:02:50]}  Qc7 {[%clk 0:02:44]} 11. Qg3 {[%clk 0:02:40]}  Nh5 {[%clk 0:02:39]} 12. Qh4 {[%clk 0:02:37]}  g6 {[%clk 0:02:39]} 13. Bh6 {[%clk 0:02:01]}  Re8 {[%clk 0:02:33]} 14. f4 {[%clk 0:01:58]}  Be7 {[%clk 0:02:29]} 15. Qf2 {[%clk 0:01:57]}  f6 {[%clk 0:02:20]} 16. Nxg6 {[%clk 0:01:50]}  Nb4 {[%clk 0:02:03]} 17. Nxe7+ {[%clk 0:01:46]}  Qxe7 {[%clk 0:02:03]} 18. Bb1 {[%clk 0:01:46]}  e5 {[%clk 0:02:02]} 19. fxe5 {[%clk 0:01:41]}  fxe5 {[%clk 0:02:02]} 20. O-O {[%clk 0:01:41]}  exd4 {[%clk 0:02:00]} 21. exd4 {[%clk 0:01:42]}  Be6 {[%clk 0:01:55]} 22. a3 {[%clk 0:01:38]}  Nc6 {[%clk 0:01:55]} 23. Bd3 {[%clk 0:01:39]}  Ng7 {[%clk 0:01:46]} 24. Qg3 {[%clk 0:01:13]}  Nxd4 {[%clk 0:01:43]} 25. Rf4 {[%clk 0:01:09]}  Nc6 {[%clk 0:01:32]} 26. Rh4 {[%clk 0:01:07]}  Rf8 {[%clk 0:01:12]} 27. Bxh7+ {[%clk 0:01:05]}  Kxh7 {[%clk 0:01:10]} 28. Bxg7+ {[%clk 0:01:02]}  Kg8 {[%clk 0:01:11]} 29. Bxf8+ {[%clk 0:00:56]}  Kxf8 {[%clk 0:01:10]} 30. Rh8+ {[%clk 0:00:56]}  Kf7 {[%clk 0:01:10]} 31. Rh7+ {[%clk 0:00:56]}  Ke8 {[%clk 0:01:10]} 32. Rxe7+ {[%clk 0:00:57]}  Kxe7 {[%clk 0:01:10]} 33. Re1 {[%clk 0:00:56]} 1-0


[Site "https://www.chess.com"]